bitfinex-derivatives/quotes_ETHF0:USTF0_20251031
["timestamp","ask_amount","ask_price","bid_price","bid_amount"]
[1761923992424,0.3956,3881.4,3881.3,3.2078]
[1761923992628,0.3976753,3882.0,3881.3,3.2078]
[1761923992825,0.3976753,3882.0,3881.8,3.2078]
[1761923994436,0.651,3881.9,3881.8,3.2078]
[1761923995028,0.3976753,3882.0,3881.8,3.2078]
[1761923996729,0.0020753,3882.0,3881.8,3.2078]
[1761923997329,0.3956,3882.5,3881.8,3.67173]
[1761923997530,0.3956,3882.5,3882.4,3.2078]
[1761923997930,1.0466,3882.5,3882.4,3.2078]
[1761923998130,1.0466,3882.5,3881.9,3.2078]
[1761923998334,3.2078,3882.3,3881.4,0.3979]
[1761923998534,0.62279534,3882.2,3881.4,0.3979]
[1761923998730,3.2078,3882.4,3881.4,3.6057]
[1761923998947,3.6034,3882.0,3881.4,0.3979]
[1761923999435,3.6034,3882.0,3881.3,0.00329739]
[1761923999737,3.6034,3882.0,3881.4,3.6057]
[1761924000131,3.2078,3882.0,3881.4,3.6057]
[1761924000527,3.2078,3882.4,3881.4,3.6057]
[1761924000830,3.2078,3882.4,3881.4,12.1257]
[1761924001226,0.00308245,3882.5,3881.4,0.3979]
[1761924001227,0.3956,3882.0,3881.4,0.3979]
[1761924001434,3.2078,3882.2,3881.4,3.6057]
[1761924002035,0.00308245,3882.5,3881.4,3.6057]
[1761924002232,3.2078,3882.1,3881.4,3.6057]
[1761924002437,0.00308245,3882.5,3882.4,0.6687]
[1761924003338,3.6034,3883.8,3882.8,0.46382]
[1761924003539,3.2078,3883.5,3882.6,3.6057]
[1761924003736,0.3956,3883.8,3882.7,0.46383]
[1761924003932,0.3956,3883.8,3882.6,3.6057]
[1761924004145,0.3956,3883.8,3882.6,4.06954]
[1761924004340,0.3956,3883.8,3883.0,3.2078]
[1761924004538,8.48483817,3883.9,3883.0,3.2078]
[1761924004736,3.2078,3883.7,3883.0,3.2078]
[1761924005139,8.48483817,3883.9,3883.0,3.2078]
[1761924005942,3.6034,3883.8,3883.0,3.2078]
[1761924006448,3.6034,3883.8,3882.6,3.6057]
[1761924006637,3.2078,3883.4,3882.6,13.1787]
[1761924006843,0.3956,3883.8,3882.6,13.1787]
[1761924007045,3.2078,3883.6,3882.6,13.1787]
[1761924007438,0.3956,3883.8,3882.6,13.1787]
[1761924007742,3.2078,3883.6,3882.6,3.6057]
[1761924007947,3.6034,3883.2,3882.6,3.6057]
[1761924008149,3.2078,3883.4,3882.6,3.6057]
[1761924008339,3.6034,3883.8,3882.6,3.6057]
[1761924008534,3.2078,3883.4,3882.6,3.6057]
[1761924008740,3.6034,3883.8,3882.6,3.6057]
[1761924009342,0.3956,3883.8,3882.6,3.6057]
[1761924009738,3.2078,3883.6,3882.6,3.6057]
[1761924010037,3.2078,3882.8,3881.9,0.20208388]
[1761924010247,3.2078,3882.8,3882.0,0.4161]
[1761924010645,3.2078,3882.4,3882.0,0.4161]
[1761924010943,3.2078,3882.9,3882.0,0.4161]
[1761924011146,3.2078,3882.9,3882.1,3.2078]
[1761924012549,3.2078,3882.5,3882.0,0.4161]
[1761924012746,3.2078,3882.9,3882.0,0.4161]
[1761924013253,3.2078,3882.9,3882.0,3.6239]
[1761924014049,3.2078,3882.9,3882.8,0.6638]
[1761924014553,1.1287,3882.6,3882.5,3.1020489]
[1761924014856,0.7074,3882.2,3881.4,0.3979]
[1761924015048,3.6291,3882.0,3881.4,0.3979]
[1761924016040,3.6291,3882.0,3880.8,9.8348]
[1761924016245,3.6291,3882.0,3881.1,3.2078]
[1761924016454,3.2078,3881.6,3880.8,9.8348]
[1761924016649,3.2078,3881.6,3880.8,0.2678]
[1761924016852,0.7074,3880.4,3879.5,5.22919126]
[1761924017152,3.2078,3880.6,3879.5,3.40724286]
[1761924017847,0.4213,3880.2,3879.6,0.41862048]
[1761924018247,0.0026602,3880.6,3879.6,0.41862048]
[1761924018556,3.2078,3880.4,3879.6,0.41862048]
[1761924018847,3.2078,3880.3,3879.6,0.41862048]
[1761924019159,0.7074,3879.7,3879.6,0.00252048]
[1761924019651,0.4213,3879.6,3877.9,3.2078]
[1761924019838,3.2078,3879.0,3877.9,3.2078]
[1761924020240,3.6291,3879.0,3877.9,3.2078]
[1761924020747,3.6291,3879.0,3877.9,3.21091859]
[1761924021255,3.2078,3879.0,3877.9,3.21091859]
[1761924021459,3.2078,3879.5,3879.0,0.4161]
[1761924022253,0.4213,3880.2,3879.2,0.46424]
[1761924022448,3.2078,3880.4,3879.4,3.2078]
[1761924022648,3.2078,3880.4,3879.4,12.7748]
[1761924023043,3.2078,3880.4,3879.5,0.46422]
[1761924023253,0.0026602,3880.6,3879.4,12.7748]
[1761924023461,0.0026602,3880.6,3879.4,13.23902]
[1761924024049,0.0026602,3880.6,3879.4,12.7748]
[1761924024256,3.2078,3880.3,3879.4,12.7748]
[1761924024652,3.2078,3880.3,3879.4,3.2078]
[1761924024857,3.2078,3880.3,3879.1,3.663]
[1761924025052,3.2078,3879.9,3879.0,3.6239]
[1761924025253,3.2078,3880.0,3879.0,0.4161]
[1761924025772,3.2078,3879.6,3879.0,0.4161]
[1761924026152,3.2078,3880.0,3879.1,3.2078]
[1761924026853,3.2078,3880.4,3879.6,0.3728]
[1761924027353,0.0026602,3880.6,3879.6,0.3728]
[1761924028342,0.0026602,3880.6,3879.9,3.2078]
[1761924028550,0.0026602,3880.6,3879.9,12.0248]
[1761924028748,0.0026602,3880.6,3879.9,3.2078]
[1761924028973,0.0026602,3880.6,3879.9,12.7748]
[1761924029460,3.2104602,3880.6,3879.9,12.7748]
[1761924029956,0.0026602,3880.6,3879.9,12.7748]
[1761924030361,0.0026602,3880.6,3879.9,3.2078]
[1761924031159,0.0026602,3880.6,3879.8,9.567]
[1761924031350,3.2104602,3880.6,3879.8,9.567]
[1761924031961,3.2104602,3880.6,3879.6,0.3728]
[1761924032160,3.2104602,3880.6,3879.7,9.566]
[1761924032652,3.2104602,3880.6,3879.6,9.9388]
[1761924034259,3.621,3880.2,3879.0,3.6239]
[1761924034560,3.2078,3879.8,3879.0,13.1899]
[1761924034760,3.2078,3880.2,3879.7,0.6666]
[1761924035959,3.621,3880.2,3879.7,0.6666]
[1761924036159,3.2078,3879.8,3879.0,3.6239]
[1761924036473,3.2078,3879.7,3879.1,9.565]
[1761924036660,0.6728,3879.1,3878.4,0.4161]
[1761924036852,0.6728,3879.1,3878.0,0.46439]
[1761924036853,3.2078,3878.9,3878.2,3.2078]
[1761924037860,3.2078,3878.9,3878.1,5.242]
[1761924039167,3.2078,3879.4,3878.4,0.2639]
[1761924039855,3.59,3879.0,3878.4,0.2639]
[1761924040160,0.3822,3879.0,3878.2,3.2078]
[1761924040360,0.3822,3879.0,3878.3,9.565]
[1761924040561,0.3822,3879.0,3877.9,0.00311859]
[1761924040562,3.59,3879.0,3877.9,0.00311859]
[1761924040766,3.2078,3878.1,3877.9,0.00311859]
[1761924040952,0.6337,3878.0,3877.9,0.00311859]
[1761924042056,3.2078,3878.1,3877.9,0.00311859]
[1761924042464,0.6337,3878.0,3877.9,0.00311859]
[1761924046064,0.6337,3878.0,3876.8,3.208]
[1761924046065,9.25089333,3878.0,3876.6,0.4151]
[1761924046272,3.2078,3877.4,3876.5,9.26737043]
[1761924046458,3.2078,3877.4,3876.6,0.68686]
[1761924046659,3.59,3877.8,3876.6,0.2223]
[1761924046875,3.59,3877.8,3876.6,0.68686]
[1761924047062,3.59227342,3877.8,3876.6,0.22448924]
[1761924048666,3.2078,3877.3,3876.6,0.22448924]
[1761924048867,0.3822,3877.2,3876.6,0.00218924]
[1761924049068,3.8415,3876.7,3876.6,0.00218924]
[1761924050264,0.6337,3876.7,3876.6,0.00218924]
[1761924052668,1.0159,3876.6,3875.4,0.4074]
[1761924052973,0.3822,3876.0,3875.4,0.61363986]
[1761924053177,0.3822,3876.0,3875.6,3.2078]
[1761924053565,0.3822,3876.0,3875.6,3.67447403]
[1761924053767,3.2078,3876.5,3875.6,3.20979403]
[1761924055475,0.6337,3875.7,3875.6,0.00199403]
[1761924055867,3.2078,3876.2,3875.6,3.20979403]
[1761924056063,3.2078,3876.2,3875.6,0.00199403]
[1761924056574,0.3822,3876.6,3875.6,0.00199403]
[1761924056974,3.2078,3876.3,3875.6,3.20979403]
[1761924057472,0.3822,3876.6,3875.6,3.67447403]
[1761924057677,0.3822,3876.6,3875.6,3.20979403]
[1761924058477,3.2078,3876.3,3875.6,3.20979403]
[1761924058775,3.2078,3876.4,3875.6,3.20979403]
[1761924059471,0.3822,3876.6,3875.6,3.20979403]
[1761924059664,3.2078,3876.4,3875.6,3.20979403]
[1761924059869,0.3822,3876.6,3875.6,3.20979403]
[1761924060376,3.2078,3876.4,3875.6,3.20979403]
[1761924060676,0.6337,3875.7,3875.6,0.00199403]
[1761924062566,0.6337,3875.7,3874.7,0.02580878]
[1761924062767,3.2078,3875.3,3874.7,0.02580878]
[1761924063186,0.6337,3874.8,3874.7,0.02580878]
[1761924063371,1.0159,3874.8,3874.7,0.02580878]
[1761924063674,1.01913329,3874.8,3874.7,0.02871368]
[1761924063873,0.00323329,3874.8,3874.7,0.02871368]
[1761924064074,0.00323329,3874.8,3874.7,0.69731368]
[1761924064975,0.3822,3876.0,3874.7,0.69731368]
[1761924064976,0.3822,3876.0,3874.8,0.4074]
[1761924065179,3.2078,3875.8,3874.8,0.4074]
[1761924065481,1.0159,3874.8,3874.7,0.02871368]
[1761924065876,1.0182684,3874.8,3874.7,0.02871368]
[1761924066377,0.0023684,3874.8,3874.7,0.02871368]
[1761924066680,0.0023684,3874.8,3874.7,0.69731368]
[1761924067974,3.59,3876.0,3874.9,0.46475]
[1761924068184,3.59,3876.0,3875.3,3.2078]
[1761924068372,0.3822,3876.0,3875.3,3.2078]
[1761924068580,0.3822,3876.0,3875.3,3.67251]
[1761924068777,0.3822,3876.0,3875.4,0.4074]
[1761924068984,0.38451477,3876.0,3875.4,0.4074]
[1761924069886,0.38451477,3876.0,3874.9,3.2078]
[1761924070276,0.38451477,3876.0,3875.1,0.46473]
[1761924070589,0.38451477,3876.0,3875.3,3.2078]
[1761924070776,0.00231477,3876.0,3875.4,0.2912]
[1761924071488,0.34951477,3876.0,3875.4,0.2912]
[1761924071687,0.34951477,3876.0,3875.3,3.2078]
[1761924072285,0.62337456,3875.9,3875.3,3.2078]
[1761924072480,0.00231477,3876.0,3875.4,0.2912]
[1761924072787,0.62340453,3875.9,3875.3,3.2078]
[1761924072982,0.34951477,3876.0,3875.3,3.2078]
[1761924073286,0.62344258,3875.9,3875.3,3.2078]
[1761924073584,0.00231477,3876.0,3875.4,0.2912]
[1761924073780,0.34951477,3876.0,3875.4,0.2912]
[1761924073980,0.34951477,3876.0,3875.3,3.2078]
[1761924074281,0.62390904,3875.9,3875.3,3.2078]
[1761924074590,0.34951477,3876.0,3874.9,12.2858]
[1761924074885,0.5892,3875.0,3874.5,3.2078]
[1761924075091,4.1442,3874.8,3873.7,3.2078]
[1761924075384,4.1442,3874.8,3873.0,0.3508]
[1761924075385,4.76836269,3874.8,3873.4,0.20101705]
[1761924075582,4.76836269,3874.8,3873.3,3.2078]
[1761924075583,3.2078,3874.4,3873.3,3.2078]
[1761924075782,0.3472,3874.2,3873.3,3.2078]
[1761924076088,0.62427862,3874.1,3873.3,3.41230243]
[1761924076287,3.2078,3874.0,3873.3,3.41485375]
[1761924076783,0.3472,3874.2,3873.7,3.2078]
[1761924077183,0.3472,3874.2,3873.6,0.01358072]
[1761924077389,0.5892,3873.7,3873.6,0.01358072]
[1761924077591,3.2078,3874.0,3873.3,0.20705375]
[1761924077592,0.5892,3873.4,3873.3,0.20705375]
[1761924077880,0.5892,3873.4,3872.5,3.2078]
[1761924078083,0.5892,3873.4,3873.1,3.2078]
[1761924078084,1.21318134,3873.4,3873.1,3.2078]
[1761924078284,0.5892,3873.4,3873.1,3.2078]
[1761924078790,3.2078,3873.8,3873.1,3.20986155]
[1761924079084,1.82002493,3875.3,3873.1,3.20986155]
[1761924079085,3.555,3874.2,3873.1,3.20986155]
[1761924079291,0.62336257,3874.1,3873.1,3.20986155]
[1761924079582,3.555,3874.2,3873.1,0.00206155]
[1761924079583,0.5892,3873.2,3873.1,0.00206155]
[1761924079787,0.5912647,3873.2,3873.1,0.00206155]
[1761924080180,0.0020647,3873.2,3873.1,0.00206155]
[1761924081288,0.0020647,3873.2,3873.1,0.61726155]
[1761924081585,0.0020647,3873.2,3873.1,3.82506155]
[1761924082485,0.0020647,3873.2,3873.1,0.61726155]
[1761924082686,0.0020647,3873.2,3873.1,0.00206155]
[1761924082881,0.0020647,3873.2,3873.1,3.82506155]
[1761924083686,0.5912647,3873.2,3873.1,3.20986155]
[1761924083894,0.5912647,3873.2,3873.1,0.00206155]
[1761924084796,0.0020647,3873.2,3873.1,0.57376155]
[1761924085197,0.0020647,3873.2,3873.1,0.00206155]
[1761924085396,0.5807647,3873.2,3873.1,0.00206155]
[1761924085594,0.0020647,3873.2,3873.1,0.00206155]
[1761924085798,0.0020647,3873.2,3873.1,3.78156155]
[1761924086494,0.0020647,3873.2,3873.1,0.00206155]
[1761924086702,0.0020647,3873.2,3873.1,0.57376155]
[1761924087402,0.3472,3874.2,3873.1,0.57376155]
[1761924087597,0.3472,3874.2,3873.4,3.67273]
[1761924087802,3.2078,3874.7,3873.8,3.2078]
[1761924087991,0.62229118,3874.6,3873.8,3.2078]
[1761924088194,3.2078,3874.7,3873.8,3.2078]
[1761924088497,3.21037428,3874.7,3873.8,3.2078]
[1761924089202,3.21037428,3874.7,3873.6,0.3534]
[1761924089389,0.3294,3874.2,3873.4,3.2078]
[1761924090198,0.3294,3874.2,3873.1,0.00206155]
[1761924090199,0.62269656,3874.1,3873.1,0.00206155]
[1761924090396,0.62269656,3874.0,3873.1,0.00206155]
[1761924090589,3.2078,3873.8,3873.1,0.00206155]
[1761924090793,0.3294,3874.2,3873.1,0.00206155]
[1761924090986,3.2078,3873.9,3873.1,0.00206155]
[1761924091196,0.3294,3874.2,3873.1,0.00206155]
[1761924091390,3.2078,3873.9,3873.1,0.00206155]
[1761924092397,0.3294,3874.2,3873.4,3.2078]
[1761924093001,3.21037428,3874.7,3873.6,0.3508]
[1761924093397,0.3294,3874.2,3873.6,0.3508]
[1761924093701,0.3294,3874.2,3873.4,3.2078]
[1761924094499,3.2078,3874.1,3873.4,0.56272812]
[1761924094998,3.2078,3874.1,3873.1,0.00206155]
[1761924095392,3.2078,3874.1,3873.1,0.46702155]
[1761924095695,3.2078,3874.1,3873.1,0.46703155]
[1761924096094,3.2078,3874.1,3873.1,0.00206155]
[1761924096296,3.2078,3874.1,3873.1,0.46703155]
[1761924096503,3.2078,3874.1,3873.2,0.46496]
[1761924096903,3.2078,3874.1,3873.1,0.00206155]
[1761924097099,3.2078,3873.7,3873.1,0.00206155]
[1761924097410,3.2078,3874.1,3873.1,0.00206155]
[1761924098505,3.2078,3874.1,3873.1,0.46702155]
[1761924098806,3.2078,3874.1,3873.1,0.00206155]
[1761924099008,0.3294,3874.2,3873.4,3.2078]
[1761924099203,3.2078,3874.1,3873.6,0.3467]
[1761924099399,0.3294,3874.2,3873.1,0.00206155]
[1761924099597,3.2078,3874.0,3873.1,0.00206155]
[1761924099903,3.2078,3874.0,3873.1,0.46703155]
[1761924100099,0.3294,3874.2,3873.1,0.00206155]
[1761924100307,0.3294,3874.2,3873.1,9.55706155]
[1761924100505,3.2078,3873.9,3873.1,9.55706155]
[1761924100698,0.3294,3874.2,3873.1,9.55706155]
[1761924101205,3.2078,3873.8,3873.1,9.55706155]
[1761924101407,3.5372,3874.2,3873.1,9.55706155]
[1761924101705,3.5372,3874.2,3873.1,10.02203155]
[1761924101906,3.5372,3874.2,3873.5,0.2003]
[1761924102100,3.5372,3874.2,3873.1,9.55706155]
[1761924102494,3.5372,3874.2,3873.1,10.02203155]
[1761924102709,0.5962,3873.2,3873.1,0.00206155]
[1761924104404,3.2078,3874.0,3873.2,0.5928]
[1761924104710,3.5438,3873.6,3873.2,0.5928]
[1761924104898,3.2078,3874.0,3873.2,0.5928]
[1761924105402,3.2078,3874.0,3873.1,0.00206155]
[1761924105403,0.3294,3874.2,3873.3,3.2078]
[1761924105904,0.3294,3874.2,3873.1,0.00206155]
[1761924105905,3.2078,3874.0,3873.1,0.00206155]
[1761924106099,3.2078,3874.0,3873.2,9.553]
[1761924106494,0.3294,3874.2,3873.2,9.553]
[1761924106908,0.3294,3874.2,3873.3,3.2078]
[1761924107207,3.2078,3874.0,3873.2,9.553]
[1761924108008,3.2078,3874.0,3873.1,0.00206155]
[1761924108308,3.2078,3874.0,3873.2,9.552]
[1761924109099,0.3294,3874.2,3873.3,3.2078]
[1761924109505,3.2078,3874.4,3873.3,3.2078]
[1761924110013,0.00257428,3874.7,3873.3,3.2078]
[1761924110014,3.2078,3874.0,3873.3,3.2078]
[1761924110804,3.2078,3874.4,3873.3,3.2078]
[1761924111519,3.2078,3874.4,3873.6,0.3467]
[1761924112809,0.00257428,3874.7,3873.6,0.3467]
[1761924113109,0.00257428,3874.7,3874.6,0.5928]
[1761924115009,0.00257428,3874.7,3874.5,9.55]
[1761924115219,0.5962,3874.2,3874.1,9.548]
[1761924115519,0.5962,3874.0,3873.9,9.548]
[1761924116313,0.5962,3874.0,3873.3,3.2078]
[1761924116616,3.2078,3874.2,3873.4,12.7548]
[1761924117208,0.336,3874.5,3873.4,12.7548]
[1761924117508,3.2078,3874.6,3873.8,5.0297484]
[1761924117707,3.2078,3874.6,3873.6,2.1137484]
[1761924118414,0.336,3874.5,3873.6,2.1137484]
[1761924118615,0.336,3874.5,3873.7,1.8219484]
[1761924118819,0.00257428,3874.7,3874.5,0.5928]
[1761924119115,0.00257428,3874.7,3874.2,9.546]
[1761924119116,0.5962,3874.3,3874.2,9.546]
[1761924119416,0.5962,3874.3,3873.6,0.2918]
[1761924119615,0.336,3874.5,3873.2,1.8219484]
[1761924119616,3.2078,3874.2,3873.2,1.8219484]
[1761924119819,3.2078,3873.8,3873.1,0.00206155]
[1761924120213,0.5962,3873.2,3873.1,0.00206155]
[1761924120418,3.804,3873.2,3873.1,0.00206155]
[1761924120617,0.336,3873.5,3873.1,0.00206155]
[1761924120820,3.2078,3873.3,3873.1,0.00206155]
[1761924121114,0.336,3873.5,3873.1,0.00206155]
[1761924121616,3.2078,3873.7,3873.1,0.00206155]
[1761924122118,0.5962,3873.2,3873.1,0.00206155]
[1761924122919,3.804,3873.2,3873.1,0.00206155]
[1761924123122,0.5962,3873.2,3873.1,0.00206155]
[1761924123623,3.804,3873.2,3873.1,0.00206155]
[1761924125323,3.2078,3873.2,3873.1,0.59486155]
[1761924125626,3.2078,3873.6,3873.1,0.59486155]
[1761924125826,3.5438,3874.0,3873.1,0.59486155]
[1761924126024,3.5438,3874.0,3873.2,0.46496]
[1761924126225,0.5962,3873.2,3873.1,0.00206155]
[1761924126414,3.804,3873.2,3873.1,0.00206155]
[1761924126925,0.336,3873.5,3873.1,0.59486155]
[1761924127427,3.804,3873.2,3873.1,0.00206155]
[1761924128119,3.2078,3873.2,3873.1,0.59486155]
[1761924129021,0.336,3873.5,3873.1,0.59486155]
[1761924129723,3.7135,3873.2,3873.1,0.00206155]
[1761924131031,3.2078,3873.2,3873.1,0.54256155]
[1761924131226,0.336,3873.5,3873.1,0.54256155]
[1761924131529,3.2078,3873.6,3873.1,0.54256155]
[1761924131915,0.5057,3873.2,3873.1,0.00206155]
[1761924132122,3.7135,3873.2,3873.1,0.00206155]
[1761924136338,3.2078,3873.6,3873.1,0.54256155]
[1761924136733,3.5438,3874.0,3873.1,0.54256155]
[1761924138435,0.5057,3873.2,3873.1,0.00206155]
[1761924139037,3.5438,3874.0,3873.1,0.00206155]
[1761924139038,3.5438,3874.0,3873.4,0.5405]
[1761924139237,0.336,3874.0,3873.5,0.3205]
[1761924139440,0.336,3874.0,3873.5,9.8595]
[1761924139741,0.336,3874.0,3873.5,9.539]
[1761924140132,3.2078,3873.7,3873.1,0.00206155]
[1761924140936,3.2078,3873.8,3873.1,0.00206155]
[1761924142535,0.5057,3873.2,3873.1,0.00206155]
[1761924142844,0.5057,3873.2,3871.7,0.67406198]
[1761924143038,3.2078,3872.8,3871.8,9.537]
[1761924143237,3.2078,3872.4,3871.8,9.537]
[1761924143538,0.305,3872.5,3871.7,0.20221988]
[1761924143739,0.305,3872.5,3871.8,9.537]
[1761924143938,3.2078,3872.4,3871.7,0.00193223]
[1761924144144,3.2078,3872.4,3871.8,9.537]
[1761924144641,0.305,3872.5,3871.7,0.00193223]
[1761924144642,0.5057,3871.8,3871.7,0.00193223]
[1761924144945,0.50768855,3871.8,3871.7,0.00193223]
[1761924146842,0.50768855,3871.8,3871.0,6.116]
[1761924146843,0.00198855,3871.8,3870.5,9.536]
[1761924147042,0.4798,3870.3,3869.6,1.8219484]
[1761924147238,3.4579,3871.0,3869.9,3.2078]
[1761924147447,3.4579,3871.0,3870.0,9.8227]
[1761924147448,0.2501,3871.0,3870.0,9.8227]
[1761924147642,3.2078,3870.7,3870.0,9.8227]
[1761924147843,3.2078,3870.7,3870.0,9.82555738]
[1761924148241,3.4579,3871.0,3870.2,3.2078]
[1761924148743,3.4579,3871.0,3870.3,9.536]
[1761924149545,0.4798,3870.4,3870.3,9.536]
[1761924150247,3.4579,3871.0,3870.3,9.536]
[1761924150752,0.4798,3870.4,3870.3,9.536]
[1761924151138,3.4579,3871.0,3870.3,9.536]
[1761924151649,3.4579,3871.0,3870.0,0.00285738]
[1761924151650,0.4798,3870.1,3870.0,0.00285738]
[1761924151842,3.6876,3870.1,3870.0,0.00285738]
[1761924152043,0.4798,3870.1,3870.0,0.00285738]
[1761924152247,3.6876,3870.1,3870.0,0.00285738]
[1761924152754,3.4998,3870.5,3870.0,0.76745738]
[1761924153354,3.4579,3871.0,3870.0,0.76745738]
[1761924153951,3.4579,3871.0,3870.0,0.27865738]
[1761924154147,3.4579,3871.0,3870.3,0.46531]
[1761924154342,0.2501,3871.5,3870.9,0.4888]
[1761924154343,3.2078,3871.4,3870.9,0.4888]
[1761924155145,0.2501,3871.5,3870.9,0.4888]
[1761924155346,0.2501,3871.5,3870.9,0.95404]
[1761924155547,0.2501,3871.5,3871.0,3.2078]
[1761924155849,3.20978855,3871.8,3871.2,0.7519]
[1761924156239,3.20978855,3871.8,3871.3,0.46519]
[1761924156438,0.00198855,3871.8,3871.4,3.2078]
[1761924157041,0.00198855,3871.8,3871.2,0.2867]
[1761924157449,0.00198855,3871.8,3871.3,0.46519]
[1761924157752,0.00198855,3871.8,3871.7,0.4888]
[1761924158046,0.00198855,3871.8,3871.7,10.0238]
[1761924158750,0.00198855,3871.8,3871.4,3.2078]
[1761924158948,3.2078,3871.7,3871.0,3.2078]
[1761924159147,3.2078,3871.7,3871.1,7.129]
[1761924159751,0.29398855,3871.8,3871.1,7.129]
[1761924160264,3.2078,3871.7,3871.0,3.2078]
[1761924160450,0.7778,3871.2,3871.0,3.2078]
[1761924160747,0.7778,3871.2,3870.0,0.27865738]
[1761924160748,0.485,3870.6,3870.0,0.27865738]
[1761924161052,3.2078,3870.7,3870.6,0.455]
[1761924161351,3.2078,3871.1,3870.6,0.455]
[1761924161551,3.2078,3871.1,3870.1,10.5008]
[1761924161743,3.2078,3870.7,3870.2,9.533]
[1761924161943,0.298,3870.6,3870.3,0.46531]
[1761924162150,3.5058,3871.2,3870.3,0.46531]
[1761924162346,3.5058,3871.2,3870.4,9.533]
[1761924162555,3.2078,3870.8,3870.4,9.533]
[1761924163055,3.2078,3870.8,3870.1,3.2078]
[1761924163355,3.2078,3870.8,3870.2,6.594]
[1761924163855,0.298,3871.2,3870.0,0.00285738]
[1761924163856,3.2078,3870.4,3870.0,0.00285738]
[1761924164244,3.2078,3870.8,3870.0,0.29485738]
[1761924164449,3.2078,3870.8,3870.0,0.76019738]
[1761924164653,3.2078,3870.8,3870.1,9.532]
[1761924165849,3.2078,3870.8,3870.2,9.531]
[1761924166154,0.485,3870.3,3870.2,9.531]
[1761924167950,0.485,3870.3,3870.0,0.00285738]
[1761924168257,0.485,3870.1,3870.0,0.00285738]
[1761924168560,0.485,3870.1,3869.7,0.02057637]
[1761924168561,0.485,3869.8,3869.7,0.02057637]
[1761924169553,0.485,3869.8,3869.7,0.00293312]
[1761924169754,0.485,3869.8,3868.2,0.292]
[1761924169951,3.2078,3869.1,3868.5,4.602]
[1761924170256,3.2078,3869.1,3868.5,9.53]
[1761924170557,3.2078,3869.1,3868.5,13.20332]
[1761924170756,3.2078,3869.1,3868.7,0.44924306]
[1761924171254,3.2078,3869.1,3868.8,0.2096]
[1761924171554,3.2078,3869.1,3869.0,0.455]
[1761924171756,3.2078,3869.6,3869.0,0.455]
[1761924172162,3.5058,3870.0,3869.0,3.2078]
[1761924172658,3.2078,3870.0,3869.9,0.455]
[1761924172958,0.298,3870.6,3869.9,0.455]
[1761924173658,0.298,3870.6,3869.7,9.53]
[1761924173869,0.298,3870.6,3869.8,0.46537]
[1761924174460,0.298,3870.6,3869.8,0.46536]
[1761924174650,0.298,3870.6,3870.0,0.75735]
[1761924174846,0.298,3870.6,3870.0,0.292]
[1761924175554,3.2078,3870.5,3869.7,9.53]
[1761924175757,3.2078,3870.5,3869.8,9.529]
[1761924177451,3.2078,3871.0,3870.4,0.455]
[1761924177760,0.298,3870.6,3870.1,3.503]
[1761924178361,0.298,3870.6,3870.1,9.528]
[1761924178659,3.5058,3870.6,3870.1,9.527]
[1761924179459,0.298,3870.6,3870.1,9.527]
[1761924179761,3.2078,3870.5,3870.1,9.527]
[1761924180059,3.2078,3870.5,3870.4,0.455]
[1761924180257,3.2078,3870.9,3870.4,0.455]
[1761924180456,0.298,3871.2,3870.4,0.455]
[1761924180662,3.2078,3871.3,3870.5,0.146]
[1761924180961,3.2078,3871.3,3870.7,0.46527]
[1761924181260,3.2078,3871.3,3870.8,9.526]
[1761924181851,3.6928,3870.9,3869.6,3.2078]
[1761924182163,3.2078,3870.0,3869.7,9.525]
[1761924182346,3.5058,3870.5,3869.9,0.455]
[1761924182553,3.2078,3870.0,3869.9,0.455]
[1761924182749,0.298,3871.0,3869.9,0.455]
[1761924182750,3.2078,3871.0,3870.8,0.455]
[1761924183161,3.5058,3871.0,3870.6,9.525]
[1761924183660,0.485,3870.7,3870.6,9.524]
[1761924183958,0.485,3870.7,3870.0,0.292]
[1761924184155,3.9908,3870.5,3870.4,9.524]
[1761924184455,3.6928,3870.5,3870.4,9.524]
[1761924185358,3.6928,3870.5,3870.0,0.292]
[1761924185554,3.6928,3870.5,3870.1,7.106]
[1761924185761,0.485,3870.5,3870.1,7.106]
[1761924185960,3.6928,3870.5,3870.1,7.106]
[1761924186160,0.485,3870.5,3870.1,7.106]
[1761924186360,3.9908,3870.5,3870.1,7.106]
[1761924186555,3.2078,3870.4,3870.1,7.106]
[1761924186953,3.2078,3870.9,3870.1,7.106]
[1761924187357,3.2078,3871.3,3870.8,0.455]
[1761924187557,3.6928,3870.9,3870.5,0.292]
[1761924187759,0.485,3870.6,3870.5,9.522]
[1761924188166,0.298,3871.0,3870.2,9.522]
[1761924188460,3.6928,3870.9,3870.5,0.292]
[1761924188665,3.6928,3870.9,3870.2,9.522]
[1761924188860,3.6928,3870.9,3870.0,0.292]
[1761924189054,3.6928,3870.9,3870.1,6.609]
[1761924189657,3.2078,3870.9,3870.8,0.414]
[1761924189856,3.2078,3870.9,3870.1,6.609]
[1761924189857,3.6283,3870.9,3870.1,6.609]
[1761924190062,3.2078,3870.9,3870.1,7.07433]
[1761924190361,3.2078,3870.9,3870.1,6.609]
[1761924190861,3.2078,3870.8,3870.1,6.609]
[1761924192063,3.2078,3870.8,3870.1,7.07434]
[1761924192264,3.2078,3870.8,3870.1,6.609]
[1761924193158,3.2078,3870.8,3870.7,0.414]
[1761924193359,0.2591,3871.0,3870.7,0.414]
[1761924193561,0.4205,3870.8,3870.1,6.609]
[1761924193870,0.4205,3870.8,3870.2,0.46533]
[1761924194073,3.2078,3870.5,3870.0,0.292]
[1761924194271,3.2078,3870.5,3870.0,9.811]